fUST/lending_fUST_20240722
["ID","MTS","AMOUNT","RATE_DAILY","PERIOD"]
[332888638,1721635841973,-506.4039846,0.00013698,2]
[332888639,1721635841984,-501.16438225,0.00013698,2]
[332888640,1721635841994,-617.99000998,0.00013698,2]
[332888641,1721635842005,-508.24530935,0.00013698,2]
[332888642,1721635842015,-501.41027796,0.00013698,2]
[332888643,1721635842025,-500.0,0.00013698,2]
[332888644,1721635842035,-516.25954644,0.00013698,2]
[332888645,1721635842045,-502.3770326,0.00013698,2]
[332888646,1721635842055,-500.0,0.00013698,2]
[332888647,1721635842066,-500.64682098,0.00013698,2]
[332888648,1721635842078,-500.0,0.00013698,2]
[332888649,1721635842089,-500.0,0.00013698,2]
[332888650,1721635842099,-500.0,0.00013698,2]
[332888651,1721635842109,-501.15052007,0.00013698,2]
[332888652,1721635842119,-500.0,0.00013698,2]
[332888653,1721635842129,-500.0,0.00013698,2]
[332888654,1721635842139,-500.0,0.00013698,2]
[332888655,1721635842149,-500.0,0.00013698,2]
[332888656,1721635842159,-500.0,0.00013698,2]
[332888657,1721635842169,-500.0,0.00013698,2]
[332888658,1721635842179,-500.0,0.00013698,2]
[332888659,1721635842188,-500.0,0.00013698,2]
[332888660,1721635842198,-500.0,0.00013698,2]
[332888661,1721635842208,-500.94892548,0.00013698,2]
[332888662,1721635842217,-500.0,0.00013698,2]
[332888663,1721635842227,-493.61586737,0.00013698,2]
[332888664,1721635842237,-500.0,0.00013698,2]
[332888665,1721635842247,-504.92000203,0.00013698,2]
[332888666,1721635842257,-501.0235432,0.00013698,2]
[332888667,1721635842266,-500.0,0.00013698,2]
[332888668,1721635842276,-500.0,0.00013698,2]
[332888669,1721635842286,-500.0,0.00013698,2]
[332888670,1721635842296,-500.0,0.00013698,2]
[332888671,1721635842306,-500.0,0.00013698,2]
[332888672,1721635842315,-500.0,0.00013698,2]
[332888673,1721635842325,-500.0,0.00013698,2]
[332888674,1721635842336,-1885.83,0.00013698,2]
[332888675,1721635842346,-370.0,0.00013698,2]
[332888676,1721635842356,-500.0,0.00013698,2]
[332888677,1721635842366,-500.0,0.00013698,2]
[332888678,1721635842376,-500.0,0.00013698,2]
[332888679,1721635842386,-500.0,0.00013698,2]
[332888680,1721635842396,-500.0,0.00013698,2]
[332888681,1721635842406,-500.0,0.00013698,2]
[332888682,1721635842418,-503.3907054,0.00013698,2]
[332888683,1721635842427,-504.20827698,0.00013698,2]
[332888684,1721635842437,-500.0,0.00013698,2]
[332888685,1721635842446,-500.0,0.00013698,2]
[332888686,1721635842456,-226.4877244,0.00013698,2]
[332888687,1721635842466,-500.0,0.00013698,2]
[332888688,1721635842476,-500.0,0.00013698,2]
[332888689,1721635842486,-621.66,0.00013698,2]
[332888690,1721635842496,-500.0,0.00013698,2]
[332888691,1721635842506,-503.24673825,0.00013698,2]
[332888692,1721635842517,-503.89243339,0.00013698,2]
[332888693,1721635842526,-500.0,0.00013698,2]
[332888694,1721635842536,-506.11841399,0.00013698,2]
[332888695,1721635842546,-546.68631017,0.00013698,2]
[332888696,1721635842556,-500.0,0.00013698,2]
[332888697,1721635842567,-500.0,0.00013698,2]
[332888698,1721635842578,-500.0,0.00013698,2]
[332888699,1721635842589,-500.0,0.00013698,2]
[332888700,1721635842599,-500.0,0.00013698,2]
[332888701,1721635842608,-503.03252469,0.00013698,2]
[332888702,1721635842618,-500.0,0.00013698,2]
[332888703,1721635842627,-500.0,0.00013698,2]
[332888704,1721635842637,-500.0,0.00013698,2]
[332888705,1721635842646,-594.07160015,0.00013698,2]
[332888706,1721635842656,-500.0,0.00013698,2]
[332888707,1721635842666,-500.0,0.00013698,2]
[332888708,1721635842675,-504.31067322,0.00013698,2]
[332888709,1721635842685,-500.0,0.00013698,2]
[332888710,1721635842695,-500.0,0.00013698,2]
[332888711,1721635842705,-505.74011897,0.00013698,2]
[332888712,1721635842715,-202.55632502,0.00013698,2]
[332888713,1721635842725,-500.0,0.00013698,2]
[332888714,1721635842735,-500.0,0.00013698,2]
[332888715,1721635842744,-500.0,0.00013698,2]
[332888716,1721635842754,-500.0,0.00013698,2]
[332888717,1721635842764,-503.32530299,0.00013698,2]
[332888718,1721635842773,-349.1682991,0.00013698,2]
[332888719,1721635842783,-500.0,0.00013698,2]
[332888720,1721635842792,-500.0,0.00013698,2]
[332888721,1721635842801,-503.48151961,0.00013698,2]
[332888722,1721635842811,-500.0,0.00013698,2]
[332888723,1721635842831,-500.0,0.00013698,2]
[332888724,1721635842843,-158.27,0.00013698,2]
[332888725,1721635842853,-500.0,0.00013698,2]
[332888726,1721635842863,-840.73,0.00013698,2]
[332888727,1721635842874,-154.71377951,0.00013698,2]
[332888728,1721635842885,-590.00216212,0.00013698,2]
[332888729,1721635842897,-205.701333,0.00013698,2]
[332888730,1721635842909,-151.0,0.00013698,2]
[332888731,1721635842919,-500.0,0.00013698,2]
[332888732,1721635842931,-151.0,0.00013698,2]
[332888733,1721635842941,-186.204627,0.00013698,2]
[332888734,1721635842952,-151.0,0.00013698,2]
[332888735,1721635842962,-151.0,0.00013698,2]
[332888736,1721635842975,-156.524409,0.00013698,2]
[332888737,1721635842985,-151.0,0.00013698,2]
[332888738,1721635842995,-151.0,0.00013698,2]
[332888739,1721635843006,-151.0,0.00013698,2]
[332888740,1721635843018,-151.0,0.00013698,2]
[332888741,1721635843027,-151.0,0.00013698,2]
[332888742,1721635843037,-151.0,0.00013698,2]
[332888743,1721635843047,-151.0,0.00013698,2]
[332888744,1721635843057,-151.0,0.00013698,2]
[332888745,1721635843068,-151.0,0.00013698,2]
[332888746,1721635843078,-151.358316,0.00013698,2]
[332888747,1721635843087,-246.0,0.00013698,2]
[332888748,1721635843097,-246.0,0.00013698,2]
[332888749,1721635843109,-246.0,0.00013698,2]
[332888750,1721635843120,-246.0,0.00013698,2]
[332888751,1721635843131,-246.0,0.00013698,2]
[332888752,1721635843141,-246.0,0.00013698,2]
[332888753,1721635843153,-246.0,0.00013698,2]
[332888754,1721635843164,-246.0,0.00013698,2]
[332888755,1721635843175,-246.0,0.00013698,2]
[332888756,1721635843186,-246.0,0.00013698,2]
[332888757,1721635843198,-246.0,0.00013698,2]
[332888758,1721635843209,-246.0,0.00013698,2]
[332888759,1721635843220,-246.0,0.00013698,2]
[332888760,1721635843230,-246.0,0.00013698,2]
[332888762,1721635843240,-246.0,0.00013698,2]
[332888764,1721635843251,-246.0,0.00013698,2]
[332888766,1721635843263,-151.678191,0.00013698,2]
[332888768,1721635843273,-152.794862,0.00013698,2]
[332888771,1721635843284,-151.0,0.00013698,2]
[332888773,1721635843295,-916.166216,0.00013698,2]
[332888775,1721635843305,-916.166216,0.00013698,2]
[332888777,1721635843315,-916.166216,0.00013698,2]
[332888779,1721635843326,-916.166216,0.00013698,2]
[332888781,1721635843336,-916.166216,0.00013698,2]
[332888783,1721635843346,-916.166216,0.00013698,2]
[332888785,1721635843359,-916.166216,0.00013698,2]
[332888786,1721635843369,-916.166216,0.00013698,2]
[332888787,1721635843379,-916.166216,0.00013698,2]
[332888788,1721635843390,-916.166216,0.00013698,2]
[332888789,1721635843401,-916.166216,0.00013698,2]
[332888790,1721635843411,-916.166216,0.00013698,2]
[332888791,1721635843422,-916.166216,0.00013698,2]
[332888792,1721635843433,-916.166216,0.00013698,2]
[332888793,1721635843443,-916.166216,0.00013698,2]
[332888794,1721635843453,-916.166216,0.00013698,2]
[332888795,1721635843464,-500.0,0.00013698,2]
[332888796,1721635843475,-367.32703968,0.00013698,2]
[332888797,1721635843487,-500.0,0.00013698,2]
[332888798,1721635843498,-161.1256529,0.00013698,2]
[332888799,1721635843508,-544.95965378,0.00013698,2]
[332888800,1721635843518,-500.0,0.00013698,2]
[332888801,1721635843529,-500.0,0.00013698,2]
[332888802,1721635843540,-544.95965378,0.00013698,2]
[332888803,1721635843551,-500.0,0.00013698,2]
[332888804,1721635843561,-544.95965378,0.00013698,2]
[332888805,1721635843571,-500.0,0.00013698,2]
[332888806,1721635843581,-544.95965378,0.00013698,2]
[332888807,1721635843591,-544.95965378,0.00013698,2]
[332888808,1721635843601,-544.95965378,0.00013698,2]
[332888809,1721635843610,-544.95965378,0.00013698,2]
[332888810,1721635843620,-544.95965378,0.00013698,2]
[332888811,1721635843630,-356.93654077,0.00013698,2]
[332888812,1721635843639,-544.95965378,0.00013698,2]
[332888813,1721635843652,-544.95965378,0.00013698,2]
[332888814,1721635843662,-500.0,0.00013698,2]
[332888815,1721635843672,-544.95965378,0.00013698,2]
[332888816,1721635843682,-544.95965378,0.00013698,2]
[332888817,1721635843691,-500.0,0.00013698,2]
[332888818,1721635843701,-500.0,0.00013698,2]
[332888819,1721635843711,-500.0,0.00013698,2]
[332888820,1721635843721,-544.95965378,0.00013698,2]
[332888821,1721635843731,-500.0,0.00013698,2]
[332888822,1721635843740,-544.95965378,0.00013698,2]
[332888823,1721635843749,-544.95965378,0.00013698,2]
[332888824,1721635843759,-544.95965378,0.00013698,2]
[332888825,1721635843768,-544.95965378,0.00013698,2]
[332888826,1721635843778,-500.0,0.00013698,2]
[332888827,1721635843787,-544.95965378,0.00013698,2]
[332888828,1721635843797,-500.0,0.00013698,2]
[332888829,1721635843809,-500.0,0.00013698,2]
[332888830,1721635843820,-500.0,0.00013698,2]
[332888831,1721635843830,-500.0,0.00013698,2]
[332888832,1721635843840,-500.0,0.00013698,2]
[332888833,1721635843850,-500.0,0.00013698,2]
[332888834,1721635843860,-500.0,0.00013698,2]
[332888835,1721635843871,-439.93920315,0.00013698,2]
[332888836,1721635843880,-500.03544072,0.00013698,2]
[332888837,1721635843891,-500.0,0.00013698,2]
[332888838,1721635843905,-500.0,0.00013698,2]
[332888839,1721635843915,-500.0,0.00013698,2]
[332888840,1721635843925,-500.0,0.00013698,2]
[332888841,1721635843935,-500.0,0.00013698,2]
[332888842,1721635843945,-500.0,0.00013698,2]
[332888843,1721635843955,-500.0,0.00013698,2]
[332888844,1721635843965,-500.0,0.00013698,2]
[332888845,1721635843975,-500.0,0.00013698,2]
[332888846,1721635843985,-544.95965378,0.00013698,2]
[332888847,1721635843995,-500.0,0.00013698,2]
[332888848,1721635844005,-500.0,0.00013698,2]
[332888849,1721635844015,-500.0,0.00013698,2]
[332888850,1721635844025,-500.0,0.00013698,2]
[332888851,1721635844035,-151.0,0.00013699,2]
[332888852,1721635844045,-151.0,0.00013699,2]
[332888853,1721635844054,-151.0,0.00013699,2]
[332888854,1721635844064,-151.0,0.00013699,2]
[332888855,1721635844074,-157.550658,0.00013699,2]
[332888856,1721635844084,-172.615443,0.00013699,2]
[332888857,1721635844095,-172.615443,0.00013699,2]
[332888858,1721635844105,-172.615443,0.00013699,2]
[332888859,1721635844117,-172.615443,0.00013699,2]
[332888860,1721635844127,-172.615443,0.00013699,2]
[332888861,1721635844137,-172.615443,0.00013699,2]
[332888862,1721635844147,-172.615443,0.00013699,2]
[332888863,1721635844158,-172.615443,0.00013699,2]
[332888864,1721635844168,-172.615443,0.00013699,2]
[332888865,1721635844177,-172.615443,0.00013699,2]
[332888866,1721635844187,-172.615443,0.00013699,2]
[332888867,1721635844198,-172.615443,0.00013699,2]
[332888868,1721635844208,-172.615443,0.00013699,2]
[332888869,1721635844218,-172.615443,0.00013699,2]
[332888870,1721635844229,-172.615443,0.00013699,2]
[332888871,1721635844238,-172.615443,0.00013699,2]
[332888872,1721635844248,-172.615443,0.00013699,2]
[332888873,1721635844257,-172.615443,0.00013699,2]
[332888874,1721635844267,-172.615443,0.00013699,2]
[332888875,1721635844276,-172.615439,0.00013699,2]
[332888876,1721635844286,-321.188806,0.00013699,2]
[332888877,1721635844295,-3000.0,0.00013699,2]
[332888878,1721635844305,-151.0,0.00013699,2]
[332888879,1721635844315,-151.0,0.00013699,2]
[332888880,1721635844324,-151.0,0.00013699,2]
[332888881,1721635844334,-151.0,0.00013699,2]
[332888882,1721635844343,-240.16457,0.00013699,2]
[332888883,1721635844353,-1000.0,0.00013699,2]
[332888884,1721635844362,-1000.0,0.00013699,2]
[332888885,1721635844371,-1000.0,0.00013699,2]
[332888886,1721635844380,-1000.0,0.00013699,2]
[332888887,1721635844390,-1000.0,0.00013699,2]
[332888888,1721635844399,-1000.0,0.00013699,2]
[332888889,1721635844409,-1000.0,0.00013699,2]
[332888890,1721635844418,-1000.0,0.00013699,2]
[332888891,1721635844427,-1000.0,0.00013699,2]
[332888892,1721635844437,-1000.0,0.00013699,2]
[332888893,1721635844446,-1000.0,0.00013699,2]
[332888894,1721635844455,-1000.0,0.00013699,2]
[332888895,1721635844464,-1000.0,0.00013699,2]
[332888896,1721635844474,-1000.0,0.00013699,2]
[332888897,1721635844483,-1000.0,0.00013699,2]
[332888898,1721635844493,-1000.0,0.00013699,2]
[332888899,1721635844502,-1000.0,0.00013699,2]
[332888900,1721635844511,-1000.0,0.00013699,2]
[332888901,1721635844521,-1000.0,0.00013699,2]
[332888902,1721635844531,-1000.0,0.00013699,2]
[332888903,1721635844540,-1000.0,0.00013699,2]
[332888904,1721635844549,-1000.0,0.00013699,2]
[332888905,1721635844559,-1000.0,0.00013699,2]
[332888906,1721635844569,-1000.0,0.00013699,2]
[332888907,1721635844578,-1000.0,0.00013699,2]
[332888908,1721635844588,-1000.0,0.00013699,2]
[332888909,1721635844597,-481.56158,0.00013699,2]
[332888910,1721635844607,-1255.235534,0.00013699,2]
[332888911,1721635844617,-246.0,0.00013699,2]
[332888912,1721635844626,-246.0,0.00013699,2]
[332888913,1721635844636,-916.166216,0.00013699,2]
[332888914,1721635844646,-916.166216,0.00013699,2]
[332888915,1721635844655,-5000.0,0.00013752,2]
[332888916,1721635844665,-3010.28073615,0.00013807,2]
[332888917,1721635844674,-306.0,0.000139,2]
[332888918,1721635844683,-241.9814,0.00013902,2]
[332888919,1721635844693,-500.0,0.0001395,2]
[332888920,1721635844703,-500.0,0.0001395,2]
[332888921,1721635844712,-153.05807994,0.00013951,2]
[332888922,1721635844722,-620.01989181,0.00013958,2]
[332888923,1721635844732,-506.86,0.0001397,2]
[332888924,1721635844741,-500.0,0.00013971,2]
[332888925,1721635844751,-500.0,0.00013971,2]
[332888926,1721635844761,-500.0,0.00013971,2]
[332888927,1721635844770,-500.0,0.00013971,2]
[332888928,1721635844779,-500.0,0.00013971,2]
[332888929,1721635844788,-500.0,0.00013971,2]
[332888930,1721635844798,-500.0,0.00013971,2]
[332888931,1721635845080,-500.0,0.00013971,2]
[332888932,1721635845091,-246.0,0.00013971,2]
[332888933,1721635845100,-246.0,0.00013971,2]
[332888934,1721635845111,-128.72928174,0.00013972,2]
[332888935,1721635845122,-500.0,0.00013972,2]
[332888936,1721635845142,-500.0,0.00013972,2]
[332888937,1721635845153,-500.0,0.00013972,2]
[332888938,1721635845163,-500.0,0.00013972,2]
[332888939,1721635845174,-500.0,0.00013972,2]
[332888940,1721635845184,-500.0,0.00013972,2]
[332888941,1721635845194,-500.0,0.00013972,2]
[332888942,1721635845204,-500.0,0.00013972,2]
[332888943,1721635845213,-500.0,0.00013972,2]
[332888944,1721635845223,-500.0,0.00013972,2]
[332888945,1721635845232,-500.0,0.00013972,2]
[332888946,1721635845242,-263.56,0.00013972,2]
[332888947,1721635845252,-311.72,0.00013972,2]
[332888948,1721635845261,-500.0,0.00013972,2]
[332888949,1721635845271,-571.58,0.00013972,2]
[332888950,1721635845280,-500.0,0.00013972,2]
[332888951,1721635845289,-222.53,0.00013972,2]
[332888952,1721635845299,-500.0,0.00013972,2]
[332888953,1721635845308,-500.0,0.00013972,2]
[332888954,1721635845318,-164.94,0.00013972,2]
[332888955,1721635845327,-500.0,0.00013972,2]
[332888956,1721635845337,-500.0,0.00013972,2]
[332888957,1721635845346,-500.0,0.00013972,2]
[332888958,1721635845355,-500.0,0.00013972,2]
[332888959,1721635845365,-500.0,0.00013972,2]
[332888960,1721635845374,-500.0,0.00013972,2]
[332888961,1721635845383,-500.0,0.00013972,2]
[332888962,1721635845393,-500.0,0.00013972,2]
[332888963,1721635845402,-500.0,0.00013972,2]
[332888964,1721635845411,-500.0,0.00013972,2]
[332888965,1721635845421,-267.88663613,0.00013972,2]
[332888966,1721635845430,-500.0,0.00013972,2]
[332888967,1721635845439,-500.0,0.00013972,2]
[332888968,1721635845449,-500.0,0.00013972,2]
[332888969,1721635845458,-503.54918777,0.00013972,2]
[332888970,1721635845467,-505.86525202,0.00013972,2]
[332888971,1721635845476,-504.37885215,0.00013972,2]
[332888972,1721635845485,-500.0,0.00013972,2]
[332888973,1721635845495,-252.80784773,0.00013972,2]
[332888974,1721635845504,-500.0,0.00013972,2]
[332888975,1721635845513,-500.0,0.00013972,2]
[332888976,1721635845522,-500.0,0.00013972,2]
[332888977,1721635845531,-338.19,0.00013972,2]
[332888978,1721635845541,-533.73,0.00013972,2]
[332888979,1721635845551,-514.26741367,0.00013972,2]
[332888980,1721635845561,-500.0,0.00013972,2]
[332888981,1721635845570,-500.0,0.00013972,2]
[332888982,1721635845579,-500.0,0.00013972,2]
[332888983,1721635845589,-500.0,0.00013972,2]
[332888984,1721635845598,-500.0,0.00013972,2]
[332888985,1721635845607,-581.84,0.00013972,2]
[332888986,1721635845617,-500.0,0.00013972,2]
[332888987,1721635845642,-500.0,0.00013972,2]
[332888988,1721635845652,-556.42,0.00013972,2]
[332888989,1721635845662,-500.0,0.00013972,2]
[332888990,1721635845672,-500.0,0.00013972,2]
[332888991,1721635845681,-500.0,0.00013972,2]
[332888992,1721635845691,-500.0,0.00013972,2]
[332888993,1721635845700,-500.0,0.00013972,2]
[332888994,1721635845709,-500.0,0.00013972,2]
[332888995,1721635845718,-500.0,0.00013972,2]
[332888996,1721635845728,-376.33007202,0.00013972,2]
[332888997,1721635845738,-500.0,0.00013972,2]
[332888998,1721635845748,-500.0,0.00013972,2]
[332888999,1721635845757,-500.0,0.00013972,2]
[332889000,1721635845767,-501.29363851,0.00013972,2]
[332889001,1721635845779,-500.0,0.00013972,2]
[332889002,1721635845789,-502.27364865,0.00013972,2]
[332889003,1721635845802,-470.79342525,0.00013972,2]
[332889004,1721635845812,-500.0,0.00013972,2]
[332889005,1721635845823,-500.0,0.00013972,2]
[332889006,1721635845833,-480.60428046,0.00013972,2]
[332889007,1721635845843,-502.35351957,0.00013972,2]
[332889008,1721635845852,-504.22224232,0.00013972,2]
[332889009,1721635845862,-500.0,0.00013972,2]
[332889010,1721635845871,-500.0,0.00013972,2]
[332889011,1721635845881,-500.0,0.00013972,2]
[332889012,1721635845891,-234.0891584,0.00013972,2]
[332889013,1721635845903,-500.0,0.00013972,2]
[332889014,1721635845913,-500.0,0.00013972,2]
[332889015,1721635845923,-500.0,0.00013972,2]
[332889016,1721635845933,-389.65926264,0.00013972,2]
[332889017,1721635845944,-500.0,0.00013972,2]
[332889018,1721635845954,-500.0,0.00013972,2]
[332889019,1721635845964,-500.0,0.00013972,2]
[332889020,1721635845974,-500.0,0.00013972,2]
[332889021,1721635845985,-500.0,0.00013972,2]
[332889022,1721635845994,-500.0,0.00013972,2]
[332889024,1721635846003,-500.0,0.00013972,2]
[332889025,1721635846013,-501.41194787,0.00013972,2]
[332889026,1721635846022,-500.89620177,0.00013972,2]
[332889027,1721635846031,-500.0,0.00013972,2]
[332889028,1721635846041,-500.0,0.00013972,2]
[332889029,1721635846052,-506.22761474,0.00013972,2]
[332889030,1721635846064,-504.6871762,0.00013972,2]
[332889031,1721635846075,-509.47361346,0.00013972,2]
[332889032,1721635846086,-505.43988984,0.00013972,2]
[332889033,1721635846097,-500.0,0.00013972,2]
[332889035,1721635846106,-579.55,0.00013972,2]
[332889036,1721635846116,-500.0,0.00013972,2]
[332889039,1721635846144,-500.0,0.00013972,2]
[332889041,1721635846155,-500.0,0.00013972,2]
[332889042,1721635846165,-500.0,0.00013972,2]
[332889043,1721635846175,-500.0,0.00013972,2]
[332889044,1721635846186,-500.0,0.00013972,2]
[332889045,1721635846196,-500.0,0.00013972,2]
[332889046,1721635846208,-766.89,0.00013972,2]
[332889047,1721635846218,-500.0,0.00013972,2]
[332889048,1721635846229,-500.0,0.00013972,2]
[332889049,1721635846239,-500.0,0.00013972,2]
[332889050,1721635846250,-503.09669277,0.00013972,2]
[332889051,1721635846261,-500.0,0.00013972,2]
[332889052,1721635846271,-500.0,0.00013972,2]
[332889053,1721635846281,-500.0,0.00013972,2]
[332889054,1721635846294,-248.33983644,0.00013972,2]
[332889055,1721635846304,-236.73723315,0.00013972,2]
[332889056,1721635846314,-377.65,0.00013972,2]
[332889057,1721635846324,-500.0,0.00013972,2]
[332889058,1721635846334,-500.0,0.00013972,2]
[332889059,1721635846345,-500.0,0.00013972,2]
[332889060,1721635846356,-500.0,0.00013972,2]
[332889061,1721635846367,-500.0,0.00013972,2]
[332889062,1721635846377,-500.0,0.00013972,2]
[332889063,1721635846386,-500.0,0.00013972,2]
[332889064,1721635846397,-500.0,0.00013972,2]
[332889065,1721635846410,-500.0,0.00013972,2]
[332889066,1721635846422,-219.47197617,0.00013972,2]
[332889067,1721635846432,-500.0,0.00013972,2]
[332889068,1721635846444,-318.18026422,0.00013972,2]
[332889069,1721635846454,-521.74,0.00013972,2]
[332889070,1721635846463,-638.7041191,0.00013972,2]
[332889071,1721635846473,-343.9285831,0.00013972,2]
[332889072,1721635846482,-584.81,0.00013972,2]
[332889073,1721635846492,-500.0,0.00013972,2]
[332889074,1721635846501,-500.0,0.00013972,2]
[332889075,1721635846511,-500.0,0.00013972,2]
[332889076,1721635846521,-500.0,0.00013972,2]
[332889077,1721635846531,-500.0,0.00013972,2]
[332889078,1721635846540,-500.0,0.00013972,2]
[332889079,1721635846550,-500.0,0.00013972,2]
[332889080,1721635846561,-176.08,0.00013972,2]
[332889081,1721635846571,-629.57450782,0.00013972,2]
[332889082,1721635846581,-500.0,0.00013972,2]
[332889083,1721635846592,-330.25005554,0.00013972,2]
[332889084,1721635846603,-436.0711919,0.00013972,2]
[332889085,1721635846613,-201.96832673,0.00013972,2]
[332889086,1721635846640,-154.81459952,0.00013972,2]
[332889087,1721635846650,-504.75716021,0.00013972,2]
[332889088,1721635846660,-504.84380992,0.00013972,2]
[332889089,1721635846670,-376.95,0.00013972,2]
[332889090,1721635846679,-500.0,0.00013972,2]
[332889091,1721635846688,-500.0,0.00013972,2]
[332889092,1721635846698,-351.17316634,0.00013972,2]
[332889093,1721635846707,-500.0,0.00013972,2]
[332889094,1721635846717,-500.0,0.00013972,2]
[332889095,1721635846726,-500.0,0.00013972,2]
[332889096,1721635846737,-500.0,0.00013972,2]
[332889097,1721635846746,-500.0,0.00013972,2]
[332889098,1721635846757,-500.0,0.00013972,2]
[332889099,1721635846766,-500.0,0.00013972,2]
[332889100,1721635846775,-505.33330674,0.00013972,2]
[332889101,1721635846785,-500.0,0.00013972,2]
[332889102,1721635846795,-500.0,0.00013972,2]
[332889103,1721635846804,-500.0,0.00013972,2]
[332889104,1721635846813,-500.0,0.00013972,2]
[332889105,1721635846822,-500.0,0.00013972,2]
[332889106,1721635846832,-612.57565108,0.00013972,2]
[332889107,1721635846841,-1885.83,0.00013972,2]
[332889108,1721635846850,-840.73,0.00013972,2]
[332889110,1721635846861,-500.0,0.00013972,2]
[332889111,1721635846870,-916.166216,0.00013972,2]
[332889113,1721635846880,-916.166224,0.00013972,2]
[332889115,1721635846890,-199.8387946,0.00013973,2]
[332889116,1721635846902,-153.0,0.00013973,2]
[332889117,1721635846912,-206.6425332,0.00013973,2]
[332889118,1721635846922,-306.8586341,0.00013973,2]
[332889119,1721635846931,-206.6425332,0.00013973,2]
[332889120,1721635846942,-293.8749366,0.00013973,2]
[332889121,1721635846951,-153.0,0.00013973,2]
[332889122,1721635846961,-293.8749366,0.00013973,2]
[332889123,1721635846971,-206.6425332,0.00013973,2]
[332889124,1721635846981,-153.0,0.00013973,2]
[332889125,1721635846991,-293.8749366,0.00013973,2]
[332889126,1721635847000,-206.6425332,0.00013973,2]
[332889127,1721635847009,-153.0,0.00013973,2]
[332889128,1721635847019,-153.0,0.00013973,2]
[332889129,1721635847028,-293.8749366,0.00013973,2]
[332889130,1721635847037,-412.8052514,0.00013973,2]
[332889131,1721635847047,-306.0,0.00013973,2]
[332889132,1721635847057,-153.0,0.00013973,2]
[332889133,1721635847066,-587.7498732,0.00013973,2]
[332889134,1721635847076,-153.0,0.00013973,2]
[332889135,1721635847085,-293.8749366,0.00013973,2]
[332889136,1721635847094,-153.0,0.00013973,2]
[332889137,1721635847103,-293.8749366,0.00013973,2]
[332889138,1721635847112,-293.8749366,0.00013973,2]
[332889139,1721635847123,-293.8749366,0.00013973,2]
[332889140,1721635847137,-293.8749366,0.00013973,2]
[332889141,1721635847152,-293.8749366,0.00013973,2]
[332889142,1721635847162,-1000.0,0.00014,5]
[332889143,1721635847171,-195.87769448,0.00014,2]
[332889144,1721635847180,-150.112233,0.00014,4]
[332889145,1721635847190,-150.112233,0.00014,2]
[332889146,1721635847199,-150.112233,0.00014,2]
[332889147,1721635847208,-500.0,0.00014098,2]
[332889148,1721635847217,-500.0,0.00014099,2]
[332889149,1721635847227,-442.32467591,0.00014099,2]
[332889150,1721635847236,-1024.28,0.00014099,2]
[332889151,1721635847245,-500.0,0.00014099,2]
[332889152,1721635847254,-500.0,0.00014099,2]
[332889153,1721635847268,-500.0,0.00014099,2]
[332889154,1721635847281,-500.0,0.00014099,2]
[332889155,1721635847294,-500.0,0.00014099,2]
[332889156,1721635847307,-500.0,0.00014099,2]
[332889157,1721635847320,-500.0,0.00014099,2]
[332889158,1721635847332,-557.84269457,0.00014099,2]